bitfinex/quotes_SOLUSD_20240829
["timestamp","ask_amount","ask_price","bid_price","bid_amount"]
[1724967006436,7.1389,140.08,140.04,31.6218]
[1724967008046,7.1389,140.08,140.04,31.6219]
[1724967008218,7.1393,140.07,140.04,24.4812]
[1724967008417,7.1393,140.07,140.03,23.1035]
[1724967010944,7.1393,140.07,140.03,7.1411]
[1724967011815,7.1399,140.06,140.02,7.1416]
[1724967014141,33.4696,140.08,139.98,17.8587]
[1724967014326,7.1413,140.03,139.99,7.143]
[1724967025965,7.1409,140.04,140.0,7.1427]
[1724967026848,7.1404,140.05,140.01,7.1422]
[1724967027045,20.0,140.04,140.01,7.1422]
[1724967032073,27.1408,140.04,140.0,24.9994]
[1724967052269,27.1408,140.04,140.01,13.74066893]
[1724967062476,27.1408,140.04,140.0,24.9994]
[1724967065475,7.1396,140.07,140.03,20.88196893]
[1724967065775,20.0,140.06,140.03,20.88196893]
[1724967066166,7.1387,140.08,140.05,13.74066893]
[1724967066855,7.1384,140.09,140.05,13.74066893]
[1724967067364,7.1384,140.09,140.05,20.88086893]
[1724967068760,20.0,140.08,140.05,20.88086893]
[1724967068961,17.8436,140.11,140.07,13.74066893]
[1724967068962,7.1373,140.11,140.07,13.74066893]
[1724967070374,9.45076288,140.13,140.07,20.87986893]
[1724967070601,7.1369,140.12,140.08,7.1386]
[1724967070756,7.1369,140.12,140.09,13.74066893]
[1724967071176,7.1369,140.12,140.08,8.45717209]
[1724967071482,7.1369,140.12,140.09,13.74066893]
[1724967077375,7.1364,140.13,140.09,20.87876893]
[1724967077714,20.0,140.12,140.09,20.87876893]
[1724967079598,20.0,140.13,140.09,20.87876893]
[1724967084590,21.996,140.19,140.11,13.74066893]
[1724967084795,7.1351,140.16,140.11,20.87766893]
[1724967085280,7.1351,140.16,140.12,13.4723]
[1724967085775,8.47509512,140.22,140.13,13.86615893]
[1724967085776,7.1335,140.19,140.13,13.86615893]
[1724967085994,8.47509512,140.22,140.15,20.87546893]
[1724967085995,7.1328,140.2,140.15,20.87546893]
[1724967086195,7.1328,140.2,140.15,7.1348]
[1724967086392,7.1328,140.2,140.15,20.87546893]
[1724967086906,7.1318,140.22,140.18,7.1336]
[1724967087207,7.1312,140.23,140.18,7.1336]
[1724967088883,7.1317,140.22,140.18,7.1336]
[1724967089088,7.1317,140.22,140.18,8.56008723]
[1724967090396,7.1322,140.21,140.17,13.516]
[1724967092905,33.3458,140.26,140.18,7.1333]
[1724967093097,20.0,140.25,140.18,7.1333]
[1724967094402,7.1318,140.22,140.18,7.1333]
[1724967095507,7.1312,140.23,140.18,7.1333]
[1724967095705,7.1312,140.23,140.18,20.87396893]
[1724967097903,7.1317,140.22,140.18,20.87396893]
[1724967103004,7.1322,140.21,140.17,13.5161]
[1724967107324,7.1317,140.22,140.18,7.1334]
[1724967107908,7.1317,140.22,140.18,8.55990897]
[1724967109796,7.1313,140.23,140.19,7.1328]
[1724967110001,7.1313,140.23,140.19,22.3877]
[1724967111114,7.1313,140.23,140.19,36.12836893]
[1724967111300,20.0,140.25,140.19,28.99556893]
[1724967111506,20.33613559,140.29,140.22,6.1497]
[1724967111707,17.8212,140.29,140.22,7.09038868]
[1724967112031,7.1286,140.28,140.23,1.42608676]
[1724967112220,7.1286,140.28,140.24,7.1305]
[1724967112716,7.1286,140.28,140.24,23.3593]
[1724967112917,20.0,140.27,140.24,23.3593]
[1724967115435,20.0,140.27,140.24,16.2288]
[1724967116503,7.1281,140.29,140.25,7.13]
[1724967117320,7.1281,140.29,140.24,41.1851]
[1724967120429,7.1275,140.3,140.26,7.1295]
[1724967123843,7.1275,140.3,140.26,13.7746]
[1724967132340,7.1287,140.28,140.26,6.6451]
[1724967133050,7.1282,140.29,140.26,6.6451]
[1724967136043,13.74066893,140.37,140.27,29.71256893]
[1724967136223,7.1251,140.35,140.3,7.1272]
[1724967136421,7.1251,140.35,140.31,7.1269]
[1724967137324,7.1251,140.35,140.3,7.1274]
[1724967137523,7.1257,140.34,140.3,7.1274]
[1724967137737,7.1263,140.33,140.29,13.5152]
[1724967138147,7.1256,140.34,140.3,7.1275]
[1724967139047,7.1256,140.34,140.29,13.5151]
[1724967139533,7.1262,140.33,140.29,13.5151]
[1724967139730,7.1262,140.33,140.29,6.3872]
[1724967140430,13.74066893,140.35,140.29,6.3872]
[1724967140640,7.1267,140.32,140.29,6.3872]
[1724967141150,7.127,140.31,140.29,6.3872]
[1724967141447,7.1267,140.32,140.29,6.3872]
[1724967143950,31.55386893,140.35,140.27,15.9719]
[1724967143951,7.1275,140.3,140.27,15.9719]
[1724967151358,7.1285,140.28,140.27,15.9719]
[1724967151537,7.1285,140.28,140.25,6.1822]
[1724967154640,7.1292,140.27,140.25,6.1822]
[1724967155436,7.1292,140.27,140.23,23.4133]
[1724967181574,13.74066893,140.27,140.22,17.8284]
[1724967181768,7.1301,140.25,140.22,17.8284]
[1724967192371,13.74066893,140.23,140.17,21.9363]
[1724967192577,27.1319,140.22,140.17,21.9363]
[1724967192772,27.1319,140.22,140.18,7.1336]
[1724967195369,27.1319,140.22,140.17,7.134]
[1724967198786,27.1319,140.22,140.18,7.1336]
[1724967198983,7.1319,140.22,140.18,7.1336]
[1724967200191,7.1292,140.27,140.22,7.1316]
[1724967201487,7.1292,140.27,140.23,7.131]
[1724967210309,7.1292,140.27,140.23,8.55677325]
[1724967211988,7.1292,140.27,140.23,7.131]
[1724967219204,7.1296,140.26,140.22,24.9601]
[1724967219510,7.1292,140.27,140.23,7.1311]
[1724967221006,7.1296,140.26,140.22,24.9601]
[1724967221208,34.0423,140.3,140.22,17.8286]
[1724967221209,13.74066893,140.27,140.22,17.8286]
[1724967221391,27.1299,140.26,140.22,17.8286]
[1724967222009,13.74066893,140.25,140.19,84.3895]
[1724967222210,20.87186893,140.23,140.19,46.5223]
[1724967222505,20.87186893,140.23,140.19,39.3895]
[1724967222703,7.1317,140.22,140.19,39.3895]
[1724967223698,7.1322,140.21,140.17,7.1341]
[1724967223908,13.74066893,140.19,140.16,17.8359]
[1724967224609,13.74066893,140.19,140.15,22.3047]
[1724967224818,7.1336,140.18,140.15,15.8203]
[1724967226104,7.1336,140.18,140.13,24.976]
[1724967229314,13.74066893,140.19,140.13,17.84]
[1724967229508,13.74066893,140.19,140.12,6.0306]
[1724967229509,7.1348,140.16,140.12,6.0306]
[1724967229693,7.1348,140.16,140.09,17.8446]
[1724967229694,20.87616893,140.15,140.1,7.1374]
[1724967230593,20.87616893,140.15,140.11,7.1371]
[1724967230794,13.74066893,140.13,140.09,24.9823]
[1724967230999,20.87696893,140.13,140.09,17.8446]
[1724967234120,20.87696893,140.13,140.09,24.9827]
[1724967234322,20.87696893,140.13,140.09,17.8446]
[1724967234916,7.1368,140.12,140.08,7.1386]
[1724967236528,20.87696893,140.13,140.08,7.1386]
[1724967237626,7.1368,140.12,140.08,7.1386]
[1724967239323,13.74066893,140.13,140.07,16.1274]
[1724967239527,7.1368,140.12,140.08,7.1386]
[1724967241107,7.1368,140.12,140.07,23.2665]
[1724967241311,7.1382,140.1,140.07,16.1274]
[1724967242620,17.8414,140.13,140.03,39.6137]
[1724967242832,13.74066893,140.09,140.03,39.6137]
[1724967243034,20.0,140.08,140.03,39.6137]
[1724967243839,7.1391,140.08,140.03,46.755]
[1724967245535,7.1392,140.07,140.03,46.755]
[1724967246823,7.1406,140.05,140.03,21.761]
[1724967247018,13.74066893,140.09,140.03,21.761]
[1724967247435,7.1394,140.07,140.03,21.761]
[1724967248120,7.1394,140.07,140.03,28.9023]
[1724967248738,7.1394,140.07,140.03,21.761]
[1724967249042,7.1398,140.06,140.0,17.8564]
[1724967249337,13.74066893,140.07,140.0,17.8564]
[1724967249338,7.1412,140.04,140.0,17.8564]
[1724967249550,7.1404,140.05,140.0,17.8564]
[1724967249915,7.1398,140.06,140.01,7.1419]
[1724967253427,27.1403,140.05,140.01,7.1419]
[1724967254522,20.0,140.05,140.02,7.1415]
[1724967254735,7.1401,140.06,140.01,7.1421]
[1724967255044,20.0,140.05,140.01,7.1421]
[1724967255550,20.0,140.05,140.02,7.1413]
[1724967255840,27.1394,140.07,140.03,7.1412]
[1724967256218,27.1394,140.07,140.02,46.8007]
[1724967256420,27.1394,140.07,140.03,7.1413]
[1724967257340,20.0,140.07,140.02,39.659]
[1724967257541,27.1392,140.08,140.03,7.1411]
[1724967257952,7.1393,140.07,140.03,7.1411]
[1724967258155,20.0,140.06,140.03,7.1411]
[1724967258439,7.1378,140.1,140.02,53.39966893]
[1724967258646,7.1378,140.1,140.05,7.1403]
[1724967259921,20.0,140.09,140.05,7.1403]
[1724967260120,27.1382,140.09,140.05,7.1403]
[1724967260318,20.0,140.09,140.05,7.1403]
[1724967261828,20.0,140.09,140.06,17.8492]
[1724967262025,20.36655721,140.14,140.06,17.8492]
[1724967262026,20.0,140.1,140.06,17.8492]
[1724967262245,13.74066893,140.11,140.06,17.8492]
[1724967262444,20.0,140.1,140.06,17.8492]
[1724967262626,7.1382,140.09,140.03,17.8531]
[1724967262821,20.0,140.08,140.03,17.8531]
[1724967263023,20.0,140.08,140.04,7.1403]
[1724967263228,20.0,140.08,140.06,17.8494]
[1724967263446,20.0,140.09,140.06,17.8494]
[1724967263655,27.1382,140.09,140.06,17.8494]
[1724967263939,20.0,140.09,140.05,7.1401]
[1724967264253,7.1379,140.1,140.05,17.85]
[1724967264427,20.0,140.09,140.05,24.9902]
[1724967265639,27.1383,140.09,140.05,24.9902]
[1724967266169,20.0,140.09,140.06,7.1395]
[1724967266370,27.1378,140.1,140.05,24.9902]
[1724967268563,20.0,140.1,140.06,1.42780671]
[1724967268865,7.1372,140.11,140.07,28.3933]
[1724967269047,7.1372,140.11,140.07,21.2542]
[1724967270366,20.0,140.1,140.07,21.2542]
[1724967273952,20.0,140.1,140.07,28.3934]
[1724967284474,20.0,140.1,140.07,21.2542]
[1724967284787,20.0,140.12,140.07,21.2542]
[1724967285570,7.138,140.1,140.07,21.2542]
[1724967290181,7.1383,140.09,140.07,21.2542]
[1724967296791,7.1383,140.09,140.05,24.9901]
[1724967298588,33.74066893,140.08,140.04,16.1079]
[1724967298760,7.1393,140.07,140.04,16.1079]
[1724967299376,7.1394,140.07,140.04,16.1079]
[1724967299561,27.1388,140.08,140.04,23.2486]
[1724967300588,20.0,140.08,140.04,16.1079]
[1724967300797,7.1391,140.08,140.04,23.2487]
[1724967301086,27.1393,140.07,140.04,16.1079]
[1724967301291,7.1393,140.07,140.04,16.1079]
[1724967303881,7.1389,140.08,140.04,23.2486]
[1724967305292,20.0,140.09,140.04,33.9594]
[1724967305479,7.1381,140.1,140.06,7.1397]
[1724967307406,7.1373,140.11,140.08,6.1438]
[1724967307696,20.0,140.1,140.08,6.1438]
[1724967308180,20.0,140.11,140.08,6.1438]
[1724967308595,7.1363,140.13,140.08,23.9904]
[1724967308899,7.136,140.14,140.09,23.2145]
[1724967310884,20.0,140.13,140.09,23.2145]
[1724967311486,20.0,140.13,140.1,7.1376]
[1724967311905,7.1352,140.15,140.11,7.1371]
[1724967312197,20.0,140.14,140.11,7.1371]
[1724967312399,20.0,140.15,140.12,7.1367]
[1724967312791,20.0,140.15,140.11,7.137]
[1724967313105,7.1348,140.16,140.12,6.2907]
[1724967314406,20.0,140.15,140.12,6.2907]
[1724967315209,20.0,140.15,140.12,13.4273]
[1724967318003,7.1342,140.17,140.13,23.0476]
[1724967318205,20.0,140.16,140.13,23.0476]
[1724967324409,7.1342,140.17,140.13,23.0476]
[1724967324582,20.0,140.16,140.13,23.0476]
[1724967325401,20.0,140.16,140.13,15.9114]
[1724967325600,267.87184793,140.21,140.13,15.9114]
[1724967325601,258.0,140.21,140.14,17.8389]
[1724967325810,258.0,140.21,140.17,7.1339]
[1724967325984,13.74066893,140.23,140.17,6.3856]
[1724967327310,7.1322,140.21,140.17,6.3856]
[1724967328296,20.0,140.2,140.17,6.3856]
[1724967329699,7.1316,140.22,140.18,16.569]
[1724967331385,7.1316,140.22,140.18,23.7026]
[1724967332513,7.1312,140.23,140.19,7.1331]
[1724967332693,7.1304,140.25,140.2,7.1325]
[1724967332887,7.1304,140.25,140.21,0.95076671]
[1724967332888,20.0,140.24,140.21,0.95076671]
[1724967333092,7.1304,140.25,140.21,0.95076671]
[1724967333397,7.1306,140.24,140.21,0.95076671]
[1724967334109,13.74066893,140.27,140.19,7.1328]
[1724967334110,20.87186893,140.23,140.19,7.1328]
[1724967334617,7.1312,140.23,140.19,7.1328]
[1724967335291,7.1312,140.23,140.18,23.7025]
[1724967336989,20.87186893,140.23,140.18,23.7025]
[1724967338309,7.1316,140.22,140.18,23.7025]
[1724967341193,7.1316,140.22,140.18,16.569]
[1724967341723,13.74066893,140.19,140.13,22.2542]
[1724967341899,13.74066893,140.17,140.13,22.2542]
[1724967343402,7.1347,140.16,140.13,22.2542]
[1724967345121,7.1347,140.16,140.13,16.1993]
[1724967345500,7.1353,140.15,140.11,24.9794]
[1724967346715,7.1353,140.15,140.11,17.8424]
[1724967347621,7.1353,140.15,140.11,24.9795]
[1724967351626,7.1353,140.15,140.09,16.1993]
[1724967351627,13.74066893,140.15,140.09,16.1993]
[1724967351818,7.1376,140.11,140.07,7.1391]
[1724967352122,7.1376,140.11,140.06,6.575]
[1724967352123,7.1376,140.11,140.06,13.7146]
[1724967354401,7.1376,140.11,140.07,7.1392]
[1724967358132,7.1377,140.1,140.06,13.7147]
[1724967358925,7.1377,140.1,140.06,7.1397]
[1724967360022,7.1383,140.09,140.05,40.5731]
[1724967360530,7.1387,140.08,140.04,7.1407]
[1724967365508,7.1384,140.09,140.04,7.1407]
[1724967366316,7.1384,140.09,140.05,7.1402]
[1724967368627,17.8409,140.13,140.09,7.1379]
[1724967368628,7.1362,140.13,140.09,7.1379]
[1724967368913,271.74066893,140.21,140.1,58.99164893]
[1724967369116,2.59228775,140.22,140.12,31.58196893]
[1724967369319,7.1327,140.2,140.15,7.1351]
[1724967369534,7.1327,140.2,140.14,17.8385]
[1724967369835,7.1327,140.2,140.15,7.1348]
[1724967370420,20.0,140.19,140.15,7.1348]
[1724967380337,27.1332,140.19,140.15,7.1348]
[1724967381432,20.0,140.19,140.16,24.9708]
[1724967382248,20.0,140.19,140.16,17.8363]
[1724967383525,27.1332,140.19,140.16,17.8363]
[1724967391648,20.0,140.19,140.16,17.8363]
[1724967397660,20.0,140.19,140.16,24.9709]
[1724967420084,28.09367968,140.24,140.17,7.134]
[1724967420385,33.74066893,140.23,140.17,7.134]
[1724967421265,7.1321,140.21,140.17,7.134]
[1724967421461,20.0,140.2,140.17,7.134]
[1724967427683,27.1328,140.2,140.16,24.9709]
[1724967436098,7.73398411,140.24,140.18,7.1333]
[1724967436395,13.74066893,140.23,140.18,7.1333]
[1724967436577,9.79694711,140.25,140.19,24.9652]
[1724967436780,13.74066893,140.24,140.19,24.9652]
[1724967437800,20.87126893,140.24,140.2,7.1325]
[1724967438273,20.87126893,140.24,140.19,24.9652]
[1724967439278,20.0,140.23,140.19,24.9652]
[1724967443099,19.5,140.23,140.19,24.9652]
[1724967444277,19.5,140.23,140.2,7.1325]
[1724967452503,19.5,140.23,140.19,24.9651]
[1724967452504,26.6311,140.23,140.19,24.9651]
[1724967455311,26.6311,140.23,140.17,16.1287]
[1724967455312,13.74066893,140.2,140.17,16.1287]
[1724967456301,20.87336893,140.2,140.17,16.1287]
[1724967461788,20.87336893,140.2,140.16,31.2699]
[1724967465087,7.1327,140.2,140.16,31.2699]
[1724967471828,13.74066893,140.2,140.13,24.4739]
[1724967472114,13.74066893,140.18,140.14,45.0]
[1724967473403,13.74066893,140.18,140.15,7.135]
[1724967473607,27.1333,140.19,140.15,7.135]
[1724967484706,7.1342,140.17,140.13,31.6096]
[1724967485103,7.1338,140.18,140.14,7.1356]
[1724967488229,27.1333,140.19,140.15,7.1351]
[1724967492318,33.74066893,140.19,140.13,6.6343]
[1724967492525,7.1337,140.18,140.13,13.7704]
[1724967494429,33.74066893,140.19,140.13,6.6343]
[1724967494626,7.1338,140.18,140.13,13.7703]
[1724967494929,7.1338,140.18,140.14,7.1356]
[1724967497143,7.1338,140.18,140.13,13.7703]
[1724967497330,20.0,140.17,140.13,13.7703]
[1724967497838,7.1353,140.15,140.13,6.6343]
[1724967498228,7.1348,140.16,140.13,6.6343]
[1724967498637,7.1348,140.16,140.12,16.2238]
[1724967500125,7.1353,140.15,140.12,16.2238]
[1724967501149,7.1348,140.16,140.12,16.2238]
[1724967501723,40.87496893,140.17,140.12,23.3603]
[1724967502542,7.1347,140.16,140.12,23.3603]
[1724967503039,16.064,140.29,140.2,16.635]
[1724967503238,16.064,140.29,140.21,52.1321]
[1724967503239,13.74066893,140.28,140.21,52.1321]
[1724967503427,13.74066893,140.28,140.22,1.42299429]
[1724967503738,16.064,140.29,140.22,8.55449429]
[1724967503939,29.80466893,140.29,140.22,8.55449429]
[1724967504246,29.80466893,140.29,140.22,7.1315]
[1724967505255,7.1292,140.27,140.22,24.9596]
[1724967505438,20.0,140.26,140.22,24.9596]
[1724967505969,7.1302,140.25,140.2,23.7676]
[1724967506142,20.0,140.24,140.2,23.7676]
[1724967506648,27.1306,140.24,140.19,24.9655]
[1724967509554,27.1306,140.24,140.16,22.9101]
[1724967509555,7.132,140.22,140.16,22.9101]
[1724967509736,20.87186893,140.23,140.17,45.0]
[1724967509939,20.87186893,140.23,140.19,7.133]
[1724967510245,13.74066893,140.23,140.19,7.133]
[1724967519763,20.87196893,140.23,140.18,7.1335]
[1724967520067,20.0,140.22,140.18,7.1335]
[1724967527451,20.87196893,140.23,140.18,7.1335]
[1724967527650,20.0,140.22,140.18,7.1335]
[1724967529191,27.1317,140.22,140.18,7.1335]
[1724967535879,7.1322,140.21,140.17,24.9688]
[1724967540259,20.0,140.2,140.17,24.9688]
[1724967540470,27.1326,140.2,140.17,17.8348]
[1724967544158,27.1326,140.2,140.16,22.9104]
[1724967544473,7.1332,140.19,140.15,13.7823]
[1724967546871,7.1332,140.19,140.15,7.135]
[1724967549888,20.0,140.18,140.15,7.135]
[1724967555294,7.1332,140.19,140.15,7.135]
[1724967555591,20.0,140.18,140.15,7.135]
[1724967555968,27.1337,140.18,140.15,7.135]
[1724967556161,27.1337,140.18,140.14,24.9736]
[1724967558870,20.0,140.17,140.14,24.9736]
[1724967563318,27.1342,140.17,140.14,17.8381]
[1724967581711,27.1342,140.17,140.13,7.136]
[1724967591717,7.1347,140.16,140.13,7.136]
[1724967592015,7.1347,140.16,140.12,7.1365]
[1724967595630,20.0,140.17,140.11,53.5271]
[1724967595806,20.0,140.19,140.12,45.0]
[1724967596429,7.135,140.16,140.12,52.1366]
[1724967598106,7.135,140.16,140.13,1.42700091]
[1724967598428,7.1343,140.17,140.13,7.136]
[1724967598638,20.0,140.16,140.13,7.136]
[1724967599108,20.0,140.16,140.12,52.1366]
[1724967600339,20.0,140.16,140.12,52.1365]
[1724967600534,7.1322,140.21,140.14,6.1792]
[1724967600826,7.1327,140.2,140.16,7.1345]
[1724967601011,7.1322,140.21,140.16,7.1345]
[1724967601519,7.1327,140.2,140.16,7.1345]
[1724967602530,7.1332,140.19,140.15,62.96289]
[1724967602728,7.1332,140.19,140.15,17.8374]
[1724967603103,7.1337,140.18,140.13,22.7916]
[1724967603309,7.1342,140.17,140.13,22.7916]
[1724967603511,27.1342,140.17,140.13,22.7916]
[1724967605437,27.1342,140.17,140.13,15.6555]
[1724967607433,20.0,140.17,140.13,15.6555]
[1724967607608,7.1342,140.17,140.13,22.7916]
[1724967608438,7.1342,140.17,140.13,15.6555]
[1724967610038,7.1342,140.17,140.13,22.7916]
[1724967611137,7.1337,140.18,140.13,22.7916]
[1724967611308,7.1337,140.18,140.14,52.1356]
[1724967611846,20.0,140.17,140.14,52.1356]
[1724967617019,7.1337,140.18,140.14,52.1356]
[1724967620839,7.1337,140.18,140.15,1.42671502]
[1724967621040,7.1333,140.19,140.15,8.56181502]
[1724967621222,20.0,140.18,140.15,8.56181502]
[1724967622932,20.0,140.18,140.15,1.42671502]
[1724967625044,27.1337,140.18,140.15,1.42671502]
[1724967626444,20.0,140.18,140.15,7.1348]
[1724967626636,20.0,140.18,140.16,45.0]
[1724967629347,20.0,140.18,140.16,46.42665152]
[1724967639459,20.0,140.18,140.16,45.0]
[1724967641956,15.0912,140.24,140.16,45.0]
[1724967642260,7.1327,140.2,140.17,45.12549]
[1724967642436,7.1327,140.2,140.18,1.42644638]
[1724967643764,7.1323,140.21,140.18,1.42644638]
[1724967643969,20.0,140.2,140.18,1.42644638]
[1724967644955,20.0,140.2,140.17,52.25959]
[1724967645645,19.0,140.2,140.17,52.25959]
[1724967649366,18.5,140.2,140.17,52.25959]
[1724967650355,25.6327,140.2,140.17,45.12549]
[1724967651639,25.6327,140.2,140.17,45.0]
[1724967654661,25.6327,140.2,140.16,24.9711]
[1724967661576,18.5,140.2,140.17,17.1960824]
[1724967661766,18.5,140.2,140.18,46.42648235]
[1724967668370,18.5,140.2,140.16,24.9711]
[1724967668371,25.633,140.2,140.16,24.9711]
[1724967669579,25.633,140.2,140.17,1.42657292]
[1724967670382,25.633,140.2,140.16,24.9711]
[1724967671056,25.633,140.2,140.17,45.12549]
[1724967671256,18.5,140.2,140.17,52.25959]
[1724967672877,25.6328,140.2,140.17,45.0]
[1724967673289,25.6328,140.2,140.16,24.9712]
[1724967673467,25.6328,140.2,140.17,1.42655608]
[1724967674082,18.5,140.2,140.17,8.56055608]
[1724967674380,18.5,140.2,140.18,45.0]
[1724967674761,25.6326,140.2,140.16,24.9711]
[1724967674959,25.6326,140.2,140.17,45.0]
[1724967675960,25.6326,140.2,140.16,24.9711]
[1724967677275,7.1326,140.2,140.16,24.9711]
[1724967678185,20.87286893,140.21,140.17,7.134]
[1724967678357,27.1328,140.2,140.17,45.0]
[1724967678766,27.1328,140.2,140.16,24.9712]
[1724967685784,27.1328,140.2,140.17,45.0]
[1724967686092,7.1313,140.23,140.19,7.1331]
[1724967686266,7.1313,140.23,140.2,1.42632264]
[1724967687972,20.0,140.22,140.2,1.42632264]
[1724967694873,7.1313,140.23,140.2,1.42632264]
[1724967695398,20.0,140.22,140.2,1.42632264]
[1724967699500,27.1316,140.22,140.2,1.42632264]
[1724967699708,27.1316,140.22,140.19,46.42633108]
[1724967703204,27.1316,140.22,140.19,45.0]
[1724967707099,20.0,140.22,140.19,52.1331]
[1724967711683,27.1316,140.22,140.19,45.0]
[1724967711977,20.0,140.22,140.19,52.1331]
[1724967712896,27.1317,140.22,140.19,45.0]
[1724967713102,27.1317,140.22,140.18,24.9673]
[1724967714301,27.1317,140.22,140.18,26.39374949]
[1724967715119,27.1317,140.22,140.18,24.9673]
[1724967715495,27.1317,140.22,140.18,26.39374439]
[1724967715695,27.1317,140.22,140.18,24.9673]
[1724967721819,40.87236893,140.22,140.18,24.9673]
[1724967729817,40.87236893,140.22,140.11,49.42486893]
[1724967729818,15.0444,140.19,140.11,41.9788]
[1724967730025,13.74066893,140.17,140.12,3.64705125]
[1724967730325,13.74066893,140.17,140.11,35.6842]
[1724967731406,20.87486893,140.17,140.13,7.1361]
[1724967732297,20.87586893,140.15,140.12,17.8411]
[1724967735024,13.74066893,140.15,140.1,7.1377]
[1724967735228,20.87596893,140.15,140.11,45.0]
[1724967735726,20.87596893,140.15,140.11,52.1371]
[1724967739733,13.74066893,140.15,140.09,17.8456]
[1724967740042,27.1358,140.14,140.09,24.9833]
[1724967740440,27.1358,140.14,140.1,7.1377]
[1724967744842,7.1358,140.14,140.1,7.1377]
[1724967748038,7.1353,140.15,140.11,7.1371]
[1724967748242,20.0,140.14,140.11,7.1371]
[1724967752651,20.0,140.14,140.1,26.4086936]
[1724967753145,27.1357,140.14,140.1,24.9815]
[1724967757844,20.0,140.14,140.11,7.1372]
[1724967758044,20.0,140.14,140.11,8.56446472]
[1724967759742,20.0,140.14,140.11,7.1372]
[1724967759950,20.0,140.14,140.11,8.56446538]
[1724967763137,20.0,140.14,140.1,17.844]
[1724967763341,7.1357,140.14,140.1,24.9813]
[1724967766127,27.1353,140.15,140.11,8.56453457]
[1724967766956,27.1353,140.15,140.11,7.1372]
[1724967767832,7.1358,140.14,140.1,24.9816]
[1724967781763,7.1364,140.13,140.1,17.844]
[1724967781954,7.1358,140.14,140.1,24.9816]
[1724967783136,7.133,140.2,140.15,7.135]
[1724967783342,7.133,140.2,140.13,22.9508]
[1724967783343,7.133,140.2,140.16,7.1344]
[1724967785944,20.0,140.19,140.16,7.1344]
[1724967801082,27.1332,140.19,140.15,7.1351]
[1724967801284,27.1332,140.19,140.16,45.0]
[1724967801978,7.1332,140.19,140.16,45.0]
[1724967812887,7.1327,140.2,140.16,52.1344]
[1724967813189,20.0,140.19,140.16,52.1344]
[1724967813397,27.1332,140.19,140.16,45.0]
[1724967813569,27.1332,140.19,140.15,7.135]
[1724967823204,7.134,140.18,140.14,17.96419]
[1724967823390,27.1332,140.19,140.15,45.0]
[1724967823577,27.1332,140.19,140.15,52.1351]
[1724967832112,20.0,140.19,140.15,52.1351]
[1724967832913,20.0,140.19,140.15,45.0]
[1724967833119,20.0,140.2,140.15,45.0]
[1724967833307,7.1332,140.19,140.15,52.135]
[1724967833619,27.1327,140.2,140.16,7.1346]
[1724967833919,27.1327,140.2,140.17,45.0]
[1724967834299,27.1327,140.2,140.15,7.1347]
[1724967834616,27.1327,140.2,140.16,45.0]
[1724967839924,20.0,140.2,140.16,62.8356]
[1724967840099,15.1425,140.23,140.16,62.8356]
[1724967840100,7.1325,140.21,140.16,69.9701]
[1724967840301,27.1327,140.2,140.16,69.9701]
[1724967840609,20.0,140.2,140.16,69.9701]
[1724967840813,7.1321,140.21,140.17,7.1341]
[1724967841019,7.1317,140.22,140.18,46.42650542]
[1724967841234,7.1317,140.22,140.18,1.42650542]